fUST/lending_fUST_20250517
["ID","MTS","AMOUNT","RATE_DAILY","PERIOD"]
[361335239,1747485038457,-2771.41121231,0.00016797,2]
[361335240,1747485038467,-614.9498468,0.00016849,2]
[361335241,1747485038476,-150.2349318,0.00016887,2]
[361335242,1747485038485,-108479.27348357,0.00016972,2]
[361335243,1747485038497,-9681.48672219,0.00016972,2]
[361335245,1747485041541,-0.00427208,0.00016138,2]
[361335248,1747485042810,-1064.93572792,0.00016138,2]
[361335249,1747485042819,-32291.94981081,0.00016972,2]
[361335250,1747485042830,-25464.51505,0.00016972,2]
[361335279,1747485045893,-1992.25656816,0.00016972,2]
[361335320,1747485625921,194.0,0.000273,120]
[361335321,1747485644362,194.0,0.000273,120]
[361335322,1747485648459,194.0,0.000273,120]
[361335323,1747485998935,-399.63108117,0.00027398,120]
[361335324,1747485998966,-19600.36891883,0.00027399,120]
[361335329,1747486124363,-203.55722602,0.00010593,2]
[361335330,1747486126336,-196.47763723,0.00010593,2]
[361335331,1747486129310,-68.40913675,0.00010593,2]
[361335332,1747486129335,-86.85705102,0.000107,14]
[361335333,1747486131949,-230.28736801,0.000107,14]
[361335334,1747486134135,-151.29958097,0.000107,14]
[361335335,1747486134807,2.24243794,0.00010593,2]
[361335336,1747486135996,-300.0,0.00010593,2]
[361335338,1747486140355,-79.34451104,0.00010593,2]
[361335356,1747486232002,-267.0683457,0.00012568,2]
[361335357,1747486232011,-267.0683457,0.00012695,2]
[361335358,1747486232021,-405.23674659,0.00013598,2]
[361335359,1747486232030,-300.0,0.00013693,2]
[361335360,1747486232039,-300.0,0.00013693,2]
[361335361,1747486232048,-1200.0,0.00013693,2]
[361335362,1747486232058,-300.0,0.00013693,2]
[361335365,1747486232068,-33753.71862449,0.00013694,2]
[361335441,1747486237831,-500.0,0.00013693,2]
[361335443,1747486237841,-500.0,0.00013693,2]
[361335445,1747486237850,-500.0,0.00013693,2]
[361335447,1747486237859,-221.36387853,0.00013693,2]
[361335449,1747486237868,-475.97728345,0.00013693,2]
[361335454,1747486237903,-24.02271655,0.00013693,2]
[361335456,1747486237913,-500.0,0.00013693,2]
[361335458,1747486237923,-500.0,0.00013693,2]
[361335460,1747486237932,-269.84486432,0.00013693,2]
[361335462,1747486237941,-500.0,0.00013693,2]
[361335464,1747486237950,-500.0,0.00013693,2]
[361335466,1747486237959,-500.0,0.00013693,2]
[361335468,1747486237968,-500.0,0.00013693,2]
[361335470,1747486237977,-500.0,0.00013693,2]
[361335472,1747486237986,-500.0,0.00013693,2]
[361335474,1747486237996,-500.0,0.00013693,2]
[361335476,1747486238005,-500.0,0.00013693,2]
[361335478,1747486238014,-500.0,0.00013693,2]
[361335480,1747486238023,-406.54860647,0.00013693,2]
[361335482,1747486238032,-202.80356462,0.00013693,2]
[361335484,1747486238041,-384.57439064,0.00013693,2]
[361335486,1747486238050,-11157.55833339,0.00013694,2]
[361335488,1747486238059,-402.00609856,0.00013698,2]
[361335490,1747486238069,-450.0,0.00013698,2]
[361335492,1747486238078,-450.0,0.00013698,2]
[361335494,1747486238087,-466.4456149,0.00013698,2]
[361335496,1747486238096,-450.0,0.00013698,2]
[361335498,1747486238105,-450.0,0.00013698,2]
[361335500,1747486238114,-450.0,0.00013698,2]
[361335502,1747486238123,-408.82001468,0.00013698,2]
[361335504,1747486238132,-450.0,0.00013698,2]
[361335506,1747486238142,-450.0,0.00013698,2]
[361335508,1747486238151,-450.0,0.00013698,2]
[361335510,1747486238161,-450.0,0.00013698,2]
[361335512,1747486238170,-340.99403644,0.00013698,2]
[361335515,1747486238185,-63.95316019,0.00013698,2]
[361335517,1747486238195,-450.0,0.00013698,2]
[361335519,1747486238204,-106.84290607,0.00013698,2]
[361335954,1747486242964,-13701.30977142,0.00013561,2]
[361335961,1747486243020,-3911.91032274,0.00013561,2]
[361335963,1747486243029,-343.15709393,0.00013698,2]
[361335965,1747486243039,-450.0,0.00013698,2]
[361335967,1747486243049,-450.0,0.00013698,2]
[361335969,1747486243058,-450.0,0.00013698,2]
[361335971,1747486243069,-450.0,0.00013698,2]
[361335973,1747486243078,-450.0,0.00013698,2]
[361335976,1747486243087,-450.0,0.00013698,2]
[361335979,1747486243096,-450.0,0.00013698,2]
[361335982,1747486243105,-450.0,0.00013698,2]
[361335985,1747486243115,-450.0,0.00013698,2]
[361335987,1747486243124,-450.0,0.00013698,2]
[361335989,1747486243134,-382.12770222,0.00013698,2]
[361335991,1747486243143,-450.0,0.00013698,2]
[361335993,1747486243152,-401.17491963,0.00013698,2]
[361335994,1747486243162,-450.0,0.00013698,2]
[361335996,1747486243171,-450.0,0.00013698,2]
[361335998,1747486243181,-450.0,0.00013698,2]
[361336000,1747486243190,-450.0,0.00013698,2]
[361336002,1747486243199,-450.0,0.00013698,2]
[361336004,1747486243208,-450.0,0.00013698,2]
[361336006,1747486243218,-450.0,0.00013698,2]
[361336008,1747486243227,-450.0,0.00013698,2]
[361336010,1747486243236,-450.0,0.00013698,2]
[361336012,1747486243245,-403.30556391,0.00013698,2]
[361336014,1747486243254,-450.0,0.00013698,2]
[361336016,1747486243264,-402.4125288,0.00013698,2]
[361336018,1747486243273,-450.0,0.00013698,2]
[361336020,1747486243282,-450.0,0.00013698,2]
[361336022,1747486243293,-450.0,0.00013698,2]
[361336024,1747486243302,-450.0,0.00013698,2]
[361336026,1747486243312,-450.0,0.00013698,2]
[361336028,1747486243321,-450.0,0.00013698,2]
[361336030,1747486243330,-450.0,0.00013698,2]
[361336032,1747486243339,-450.0,0.00013698,2]
[361336034,1747486243349,-450.0,0.00013698,2]
[361336035,1747486243359,-450.0,0.00013698,2]
[361336037,1747486243368,-450.0,0.00013698,2]
[361336039,1747486243379,-405.3937239,0.00013698,2]
[361336041,1747486243388,-450.0,0.00013698,2]
[361336043,1747486243397,-425.64856177,0.00013698,2]
[361336044,1747486243406,-220.01457,0.00013699,2]
[361336046,1747486243417,-500.0,0.00013699,2]
[361336048,1747486243427,-450.0,0.00013835,2]
[361336050,1747486243436,-450.0,0.00013972,2]
[361336052,1747486243446,-450.0,0.00014109,2]
[361336054,1747486243456,-152.0,0.00014144,2]
[361336056,1747486243466,-998.40506679,0.00014145,2]
[361336058,1747486243476,-450.0,0.00014246,2]
[361336060,1747486243486,-291.59458831,0.00014383,2]
[361336062,1747486243496,-151.0,0.00014661,2]
[361336064,1747486243507,-17657.40853696,0.00014888,2]
[361336066,1747486243521,-8614.588,0.00014888,2]
[361336281,1747486245979,-1210.55707798,0.00014888,2]
[361336288,1747486246035,-34330.8425398,0.00014888,2]
[361336913,1747486664647,228.75999999,0.00027397,120]
[361336914,1747486736820,-300.0,0.00013424,2]
[361336915,1747486736841,-744.78104328,0.00013598,2]
[361336916,1747486736861,-270.15783106,0.00013598,2]
[361336917,1747486736881,-410.62219292,0.00013599,2]
[361336918,1747486736903,-1200.0,0.00013696,2]
[361336919,1747486736923,-300.0,0.00013696,2]
[361336920,1747486736945,-300.0,0.00013696,2]
[361336921,1747486736968,-9526.43893274,0.00013697,2]
[361336922,1747486804395,-380.70569851,0.00011,2]
[361336923,1747486806059,-285.90165442,0.00011,2]
[361336924,1747486808165,-277.58125823,0.00011,2]
[361336925,1747486810764,-200.06862657,0.00011,2]
[361336926,1747486813439,-230.23822979,0.00011,2]
[361336927,1747486814876,-269.76177021,0.00011,2]
[361336928,1747486816329,-413.51083107,0.00011,2]
[361336929,1747486820384,-343.0720146,0.00011,2]
[361336930,1747486822447,-151.1599166,0.00011,2]
[361336949,1747487432344,-349.2695165,0.00012195,2]
[361336951,1747487432354,-555.2986708,0.00012262,2]
[361336953,1747487432364,-555.2986708,0.00012385,2]
[361336955,1747487432374,-427.5448912,0.00012603,2]
[361336957,1747487432383,-300.0,0.00012999,2]
[361336959,1747487432393,-44697.29092521,0.00013,2]
[361336961,1747487432403,-180.10522072,0.00013255,2]
[361336963,1747487432412,-10234.76572053,0.00013355,2]
[361336966,1747487432427,-518.7636901,0.00013355,2]
[361336976,1747487432515,-8192.43675309,0.00013355,2]
[361336978,1747487432526,-599.19768799,0.00013355,2]
[361336980,1747487432538,-236.6790923,0.00013355,2]
[361336982,1747487432548,-500.0,0.00013355,2]
[361336984,1747487432558,-500.0,0.00013355,2]
[361336986,1747487432568,-500.0,0.00013355,2]
[361336988,1747487432578,-404.5605338,0.00013355,2]
[361336991,1747487432592,-500.0,0.00013355,2]
[361336994,1747487432601,-500.0,0.00013355,2]
[361336997,1747487432611,-500.0,0.00013355,2]
[361337000,1747487432620,-430.93151875,0.00013355,2]
[361337003,1747487432629,-290.60628397,0.00013355,2]
[361337005,1747487432638,-500.0,0.00013355,2]
[361337007,1747487432647,-500.0,0.00013355,2]
[361337009,1747487432657,-500.0,0.00013355,2]
[361337011,1747487432666,-180.1052207,0.00013427,2]
[361337013,1747487432676,-494.30950484,0.00013597,2]
[361337015,1747487432685,-180.1052207,0.00013598,2]
[361337017,1747487432695,-40000.0,0.000136,2]
[361337019,1747487432704,-500.0,0.00013697,2]
[361337021,1747487432714,-500.0,0.00013697,2]
[361337023,1747487432724,-500.0,0.00013697,2]
[361337025,1747487432733,-398.06039521,0.00013697,2]
[361337027,1747487432743,-500.0,0.00013697,2]
[361337029,1747487432752,-500.0,0.00013697,2]
[361337031,1747487432762,-229.92984861,0.00013697,2]
[361337033,1747487432772,-500.0,0.00013697,2]
[361337035,1747487432781,-500.0,0.00013697,2]
[361337037,1747487432791,-500.0,0.00013697,2]
[361337039,1747487432800,-577.34041405,0.00013698,2]
[361337041,1747487432809,-450.0,0.00013698,2]
[361337043,1747487432818,-450.0,0.00013698,2]
[361337045,1747487432827,-450.0,0.00013698,2]
[361337047,1747487432836,-450.0,0.00013698,2]
[361337049,1747487432846,-450.0,0.00013698,2]
[361337051,1747487432856,-401.50317887,0.00013698,2]
[361337053,1747487432865,-450.0,0.00013698,2]
[361337055,1747487432875,-450.0,0.00013698,2]
[361337057,1747487432884,-214.01649776,0.00013698,2]
[361337059,1747487432894,-401.23941587,0.00013698,2]
[361337061,1747487432903,-401.38747886,0.00013698,2]
[361337063,1747487432912,-402.05383914,0.00013698,2]
[361337065,1747487432922,-401.9682729,0.00013698,2]
[361337067,1747487432932,-450.0,0.00013698,2]
[361337069,1747487432941,-450.0,0.00013698,2]
[361337071,1747487432951,-450.0,0.00013698,2]
[361337073,1747487432960,-400.43357852,0.00013698,2]
[361337075,1747487432970,-450.0,0.00013698,2]
[361337077,1747487432979,-450.0,0.00013698,2]
[361337079,1747487432990,-450.0,0.00013698,2]
[361337081,1747487432999,-450.0,0.00013698,2]
[361337083,1747487433010,-450.0,0.00013698,2]
[361337085,1747487433019,-503.87742256,0.00013698,2]
[361337087,1747487433028,-402.31935392,0.00013698,2]
[361337089,1747487433038,-400.34974174,0.00013698,2]
[361337091,1747487433047,-405.08729327,0.00013698,2]
[361337093,1747487433058,-401.31931123,0.00013698,2]
[361337094,1747487433075,-450.0,0.00013698,2]
[361337096,1747487433087,-365.57899307,0.00013698,2]
[361337099,1747487433096,-402.00312491,0.00013698,2]
[361337101,1747487433107,-450.0,0.00013698,2]
[361337102,1747487433116,-450.0,0.00013698,2]
[361337105,1747487433126,-450.0,0.00013698,2]
[361337107,1747487433136,-277.27178343,0.00013698,2]
[361337109,1747487433145,-400.86206516,0.00013698,2]
[361337110,1747487433155,-450.0,0.00013698,2]
[361337112,1747487433164,-450.0,0.00013698,2]
[361337114,1747487433173,-450.0,0.00013698,2]
[361337116,1747487433182,-450.0,0.00013698,2]
[361337119,1747487433196,-450.0,0.00013698,2]
[361337121,1747487433205,-400.63538985,0.00013698,2]
[361337123,1747487433216,-450.0,0.00013698,2]
[361337125,1747487433225,-450.0,0.00013698,2]
[361337127,1747487433235,-450.0,0.00013698,2]
[361337129,1747487433245,-450.0,0.00013698,2]
[361337131,1747487433255,-450.0,0.00013698,2]
[361337133,1747487433264,-478.54927734,0.00013698,2]
[361337135,1747487433273,-450.0,0.00013698,2]
[361337137,1747487433282,-450.0,0.00013698,2]
[361337139,1747487433292,-400.62566055,0.00013698,2]
[361337141,1747487433301,-450.0,0.00013698,2]
[361337143,1747487433311,-450.0,0.00013698,2]
[361337145,1747487433321,-450.0,0.00013698,2]
[361337147,1747487433331,-450.0,0.00013698,2]
[361337149,1747487433340,-450.0,0.00013698,2]
[361337151,1747487433350,-450.0,0.00013698,2]
[361337153,1747487433359,-450.0,0.00013698,2]
[361337155,1747487433369,-450.0,0.00013698,2]
[361337157,1747487433378,-206.73654446,0.00013698,2]
[361337159,1747487433388,-450.0,0.00013698,2]
[361337161,1747487433397,-450.0,0.00013698,2]
[361337163,1747487433407,-425.08583795,0.00013698,2]
[361337165,1747487433419,-450.0,0.00013698,2]
[361337167,1747487433428,-450.0,0.00013698,2]
[361337169,1747487433438,-404.49785513,0.00013698,2]
[361337171,1747487433449,-450.0,0.00013698,2]
[361337173,1747487433459,-400.88327233,0.00013698,2]
[361337175,1747487433469,-450.0,0.00013698,2]
[361337177,1747487433479,-402.66735484,0.00013698,2]
[361337179,1747487433489,-400.78012797,0.00013698,2]
[361337181,1747487433499,-402.0455979,0.00013698,2]
[361337183,1747487433510,-450.0,0.00013698,2]
[361337185,1747487433520,-164.00214345,0.00013698,2]
[361337187,1747487433531,-450.0,0.00013698,2]
[361337189,1747487433541,-389.50297437,0.00013698,2]
[361337191,1747487433550,-450.0,0.00013698,2]
[361337193,1747487433560,-400.0,0.00013698,2]
[361337195,1747487433569,-400.0,0.00013698,2]
[361337217,1747487433769,-450.0,0.00013698,2]
[361337219,1747487433780,-450.0,0.00013698,2]
[361337221,1747487433791,-450.0,0.00013698,2]
[361337223,1747487433800,-450.0,0.00013698,2]
[361337225,1747487433811,-450.0,0.00013698,2]
[361337227,1747487433820,-450.0,0.00013698,2]
[361337229,1747487433831,-450.0,0.00013698,2]
[361337231,1747487433842,-450.0,0.00013698,2]
[361337233,1747487433852,-586.13582771,0.00013698,2]
[361337235,1747487433863,-407.2847538,0.00013698,2]
[361337237,1747487433872,-450.0,0.00013698,2]
[361337239,1747487433883,-345.80044518,0.00013698,2]
[361337241,1747487433893,-450.0,0.00013698,2]
[361337243,1747487433903,-450.0,0.00013698,2]
[361337245,1747487433913,-450.0,0.00013698,2]
[361337247,1747487433922,-405.29281987,0.00013698,2]
[361337249,1747487433932,-450.0,0.00013698,2]
[361337250,1747487433941,-402.03981809,0.00013698,2]
[361337253,1747487433951,-450.0,0.00013698,2]
[361337254,1747487433961,-450.0,0.00013698,2]
[361337256,1747487433973,-413.66794737,0.00013698,2]
[361337258,1747487433983,-450.0,0.00013698,2]
[361337260,1747487433993,-450.0,0.00013698,2]
[361337263,1747487434003,-450.0,0.00013698,2]
[361337265,1747487434013,-450.0,0.00013698,2]
[361337267,1747487434023,-450.0,0.00013698,2]
[361337269,1747487434035,-450.0,0.00013698,2]
[361337271,1747487434045,-450.0,0.00013698,2]
[361337272,1747487434055,-450.0,0.00013698,2]
[361337273,1747487434064,-450.0,0.00013698,2]
[361337274,1747487434073,-450.0,0.00013698,2]
[361337275,1747487434083,-450.8078796,0.00013698,2]
[361337276,1747487434093,-450.0,0.00013698,2]
[361337277,1747487434103,-450.0,0.00013698,2]
[361337278,1747487434113,-328.16967998,0.00013698,2]
[361337279,1747487434123,-500.0,0.00013698,2]
[361337280,1747487434133,-500.0,0.00013698,2]
[361337281,1747487434143,-500.0,0.00013698,2]
[361337282,1747487434152,-500.0,0.00013698,2]
[361337283,1747487434162,-450.0,0.00013698,2]
[361337284,1747487434171,-450.0,0.00013698,2]
[361337285,1747487434180,-450.0,0.00013698,2]
[361337286,1747487434189,-450.0,0.00013698,2]
[361337287,1747487434198,-450.0,0.00013698,2]
[361337288,1747487434207,-400.84757874,0.00013698,2]
[361337289,1747487434219,-450.0,0.00013698,2]
[361337290,1747487434228,-450.0,0.00013698,2]
[361337291,1747487434238,-450.0,0.00013698,2]
[361337292,1747487434247,-450.0,0.00013698,2]
[361337293,1747487434258,-450.0,0.00013698,2]
[361337294,1747487434267,-450.0,0.00013698,2]
[361337295,1747487434277,-450.0,0.00013698,2]
[361337296,1747487434286,-450.0,0.00013698,2]
[361337297,1747487434296,-337.59350836,0.00013698,2]
[361337457,1747487438150,-62.95687494,0.00013698,2]
[361337458,1747487438160,-400.0,0.00013698,2]
[361337459,1747487438170,-400.0,0.00013698,2]
[361337460,1747487438179,-450.0,0.00013698,2]
[361337461,1747487438189,-190.42598248,0.00013698,2]
[361337591,1747487446153,-8322.38684009,0.00013561,2]
[361337602,1747487446389,-8822.31865124,0.00013561,2]
[361337603,1747487446401,-7169.25967899,0.00013561,2]
[361337604,1747487446410,-209.57401752,0.00013698,2]
[361337605,1747487446420,-450.0,0.00013698,2]
[361337606,1747487446429,-450.0,0.00013698,2]
[361337607,1747487446438,-402.65000873,0.00013698,2]
[361337608,1747487446448,-450.0,0.00013698,2]
[361337609,1747487446458,-450.0,0.00013698,2]
[361337610,1747487446469,-450.0,0.00013698,2]
[361337612,1747487446480,-450.0,0.00013698,2]
[361337614,1747487446490,-450.0,0.00013698,2]
[361337615,1747487446499,-450.0,0.00013698,2]
[361337616,1747487446509,-450.0,0.00013698,2]
[361337617,1747487446519,-450.0,0.00013698,2]
[361337618,1747487446529,-450.0,0.00013698,2]
[361337619,1747487446539,-450.0,0.00013698,2]
[361337620,1747487446553,-450.0,0.00013698,2]
[361337621,1747487446564,-450.0,0.00013698,2]
[361337622,1747487446574,-450.0,0.00013698,2]
[361337623,1747487446583,-401.12213207,0.00013698,2]
[361337624,1747487446592,-450.0,0.00013698,2]
[361337625,1747487446601,-400.0,0.00013698,2]
[361337626,1747487446610,-257.30267594,0.00013698,2]
[361337627,1747487446619,-450.0,0.00013698,2]
[361337628,1747487446629,-450.0,0.00013698,2]
[361337629,1747487446639,-450.0,0.00013698,2]
[361337630,1747487446648,-400.0,0.00013698,2]
[361337631,1747487446657,-450.0,0.00013698,2]
[361337632,1747487446667,-450.0,0.00013698,2]
[361337633,1747487446676,-400.0,0.00013698,2]
[361337634,1747487446685,-450.0,0.00013698,2]
[361337635,1747487446695,-450.0,0.00013698,2]
[361337636,1747487446704,-450.0,0.00013698,2]
[361337637,1747487446713,-450.0,0.00013698,2]
[361337638,1747487446722,-450.0,0.00013698,2]
[361337639,1747487446733,-450.0,0.00013698,2]
[361337640,1747487446743,-450.0,0.00013698,2]
[361337641,1747487446753,-450.0,0.00013698,2]
[361337642,1747487446763,-450.0,0.00013698,2]
[361337643,1747487446772,-450.0,0.00013698,2]
[361337644,1747487446781,-450.0,0.00013698,2]
[361337645,1747487446790,-450.0,0.00013698,2]
[361337646,1747487446799,-450.0,0.00013698,2]
[361337647,1747487446808,-500.0,0.00013698,2]
[361337648,1747487446818,-500.0,0.00013698,2]
[361337649,1747487446827,-500.0,0.00013698,2]
[361337650,1747487446837,-500.0,0.00013698,2]
[361337651,1747487446846,-450.0,0.00013698,2]
[361337652,1747487446856,-450.0,0.00013698,2]
[361337653,1747487446865,-402.09790933,0.00013698,2]
[361337654,1747487446874,-450.0,0.00013698,2]
[361337655,1747487446884,-450.0,0.00013698,2]
[361337656,1747487446893,-450.0,0.00013698,2]
[361337657,1747487446902,-450.0,0.00013698,2]
[361337658,1747487446911,-450.0,0.00013698,2]
[361337659,1747487446920,-250.00000001,0.00013698,2]
[361337660,1747487446929,-450.0,0.00013698,2]
[361337661,1747487446939,-450.0,0.00013698,2]
[361337662,1747487446949,-450.0,0.00013698,2]
[361337663,1747487446958,-450.0,0.00013698,2]
[361337664,1747487446968,-450.0,0.00013698,2]
[361337665,1747487446977,-560.05369715,0.00013698,2]
[361337666,1747487446987,-450.0,0.00013698,2]
[361337667,1747487446996,-450.0,0.00013698,2]
[361337668,1747487447005,-450.0,0.00013698,2]
[361337669,1747487447015,-450.0,0.00013698,2]
[361337670,1747487447024,-450.0,0.00013698,2]
[361337671,1747487447033,-450.0,0.00013698,2]
[361337672,1747487447042,-450.0,0.00013698,2]
[361337673,1747487447052,-450.0,0.00013698,2]
[361337674,1747487447061,-400.92719641,0.00013698,2]
[361337675,1747487447071,-450.0,0.00013698,2]
[361337676,1747487447080,-450.0,0.00013698,2]
[361337677,1747487447090,-450.0,0.00013698,2]
[361337678,1747487447099,-450.0,0.00013698,2]
[361337679,1747487447108,-450.0,0.00013698,2]
[361337680,1747487447117,-450.0,0.00013698,2]
[361337681,1747487447127,-450.0,0.00013698,2]
[361337682,1747487447136,-450.0,0.00013698,2]
[361337683,1747487447145,-450.0,0.00013698,2]
[361337684,1747487447154,-450.0,0.00013698,2]
[361337685,1747487447165,-450.0,0.00013698,2]
[361337686,1747487447174,-450.0,0.00013698,2]
[361337687,1747487447183,-450.0,0.00013698,2]
[361337688,1747487447193,-450.0,0.00013698,2]
[361337689,1747487447202,-450.0,0.00013698,2]
[361337690,1747487447211,-450.0,0.00013698,2]
[361337691,1747487447220,-450.0,0.00013698,2]
[361337692,1747487447233,-151.0,0.00013698,2]
[361337693,1747487447243,-404.27774871,0.00013698,2]
[361337694,1747487447252,-450.0,0.00013698,2]
[361337695,1747487447261,-450.0,0.00013698,2]
[361337696,1747487447270,-401.10725529,0.00013698,2]
[361337697,1747487447279,-450.0,0.00013698,2]
[361337698,1747487447288,-450.0,0.00013698,2]
[361337699,1747487447297,-450.0,0.00013698,2]
[361337700,1747487447307,-450.0,0.00013698,2]
[361337701,1747487447316,-450.0,0.00013698,2]
[361337702,1747487447326,-450.0,0.00013698,2]
[361337703,1747487447335,-450.0,0.00013698,2]
[361337704,1747487447344,-401.3471491,0.00013698,2]
[361337705,1747487447353,-450.0,0.00013698,2]
[361337706,1747487447362,-670.59,0.00013698,2]
[361337707,1747487447372,-450.0,0.00013698,2]
[361337708,1747487447381,-403.36212656,0.00013698,2]
[361337709,1747487447392,-450.0,0.00013698,2]
[361337710,1747487447402,-450.0,0.00013698,2]
[361337711,1747487447411,-450.0,0.00013698,2]
[361337712,1747487447421,-450.0,0.00013698,2]
[361337713,1747487447431,-303.18392996,0.00013698,2]
[361337714,1747487447440,-450.0,0.00013698,2]
[361337715,1747487447449,-420.34127567,0.00013698,2]
[361337716,1747487447459,-450.0,0.00013698,2]
[361337717,1747487447470,-450.0,0.00013698,2]
[361337718,1747487447480,-450.0,0.00013698,2]
[361337719,1747487447490,-450.0,0.00013698,2]
[361337720,1747487447498,-530.06327976,0.00013698,2]
[361337721,1747487447508,-450.0,0.00013698,2]
[361337722,1747487447519,-450.0,0.00013698,2]
[361337723,1747487447528,-450.0,0.00013698,2]
[361337724,1747487447538,-450.0,0.00013698,2]
[361337725,1747487447693,-449.72,0.00013698,2]
[361337726,1747487447704,-450.0,0.00013698,2]
[361337727,1747487447714,-450.0,0.00013698,2]
[361337728,1747487447724,-310.0,0.00013698,2]
[361337729,1747487447739,-219.137551,0.00013698,2]
[361337730,1747487447748,-450.0,0.00013698,2]
[361337731,1747487447758,-450.0,0.00013698,2]
[361337732,1747487447768,-450.0,0.00013698,2]
[361337733,1747487447778,-450.0,0.00013698,2]
[361337734,1747487447787,-450.0,0.00013698,2]
[361337735,1747487447796,-450.0,0.00013698,2]
[361337736,1747487447806,-151.0,0.00013698,2]
[361337737,1747487447816,-450.0,0.00013698,2]
[361337738,1747487447826,-450.0,0.00013698,2]
[361337739,1747487447836,-400.91451024,0.00013698,2]
[361337740,1747487447846,-450.0,0.00013698,2]
[361337741,1747487447856,-151.0,0.00013698,2]
[361337742,1747487447867,-450.0,0.00013698,2]
[361337743,1747487447876,-294.949279,0.00013698,2]
[361337744,1747487447886,-450.0,0.00013698,2]
[361337745,1747487447896,-407.32592892,0.00013698,2]
[361337746,1747487447906,-450.0,0.00013698,2]
[361337747,1747487447915,-400.53948181,0.00013698,2]
[361337748,1747487447925,-402.01186613,0.00013698,2]
[361337749,1747487447935,-404.14050957,0.00013698,2]
[361337750,1747487447944,-450.0,0.00013698,2]
[361337751,1747487447953,-450.0,0.00013698,2]
[361337752,1747487447963,-401.4987925,0.00013698,2]
[361337753,1747487447972,-151.0,0.00013698,2]
[361337754,1747487447983,-151.0,0.00013698,2]
[361337755,1747487447992,-151.0,0.00013698,2]
[361337756,1747487448001,-450.0,0.00013698,2]
[361337757,1747487448011,-450.0,0.00013698,2]
[361337758,1747487448021,-450.0,0.00013698,2]
[361337759,1747487448030,-461.93181415,0.00013698,2]
[361337760,1747487448039,-401.57699718,0.00013698,2]
[361337761,1747487448050,-450.0,0.00013698,2]
[361337762,1747487448060,-450.0,0.00013698,2]
[361337763,1747487448069,-450.0,0.00013698,2]
[361337764,1747487448078,-153.457827,0.00013698,2]
[361337765,1747487448087,-450.0,0.00013698,2]
[361337766,1747487448096,-345.769694,0.00013698,2]
[361337767,1747487448105,-450.0,0.00013698,2]
[361337768,1747487448114,-345.769694,0.00013698,2]
[361337769,1747487448123,-450.0,0.00013698,2]
[361337770,1747487448133,-450.0,0.00013698,2]
[361337771,1747487448143,-450.0,0.00013698,2]
[361337772,1747487448152,-450.0,0.00013698,2]
[361337773,1747487448161,-503.09872212,0.00013698,2]
[361337774,1747487448170,-450.0,0.00013698,2]
[361337775,1747487448180,-151.253534,0.00013698,2]
[361337776,1747487448189,-450.0,0.00013698,2]
[361337777,1747487448199,-450.0,0.00013698,2]
[361337778,1747487448208,-448.36412873,0.00013698,2]
[361337779,1747487448218,-450.0,0.00013698,2]
[361337780,1747487448228,-450.0,0.00013698,2]
[361337781,1747487448237,-400.95449768,0.00013698,2]
[361337782,1747487448247,-401.42132255,0.00013698,2]